Workbook

Sheet G&A Expense Budget
B3: G&A Expense Budget
B4: Your Company, Inc.
B5: For Period Ending April 30, 2010
D7: This Month | H7: Year to Date
D8: Budget | E8: Actual | F8: Variance | H8: Budget | I8: Actual | J8: Variance
B9: FIXED
B10: Exec salaries | D10: $3,200 | E10: $1,900 | F10: =IF(OR(E10<>0,D10),E10-D10,"") -> ($1,300) | H10: $31,100 | I10: $46,600 | J10: =IF(OR(I10<>0,H10),I10-H10,"") -> $15,500
B11: Office salaries | D11: 1,300 | E11: 8,700 | F11: 7,400 | H11: 36,400 | I11: 45,100 | J11: 8,700
B12: Employee benefits | D12: 22,900 | E12: 19,800 | F12: (3,100) | H12: 222,660 | I12: 259,000 | J12: 36,340
B13: Payroll taxes | D13: 14,200 | E13: 7,500 | F13: (6,700) | H13: 28,900 | I13: 41,800 | J13: 12,900
B14: Travel and entertainment | D14: 4,100 | E14: 5,100 | F14: 1,000 | H14: 15,100 | I14: 20,000 | J14: 4,900
B15: Directors' fees and expenses | D15: 38,400 | E15: 36,100 | F15: (2,300) | H15: 187,300 | I15: 167,800 | J15: (19,500)
B16: Insurance | D16: 18,600 | E16: 10,000 | F16: (8,600) | H16: 64,100 | I16: 58,200 | J16: (5,900)
B17: Rent | D17: 47,500 | E17: 49,700 | F17: 2,200 | H17: 377,500 | I17: 333,300 | J17: (44,200)
B18: Depreciation | D18: 46,600 | E18: 30,200 | F18: (16,400) | H18: 334,000 | I18: 201,400 | J18: (132,600)
B19: Taxes | D19: 40,400 | E19: 59,900 | F19: 19,500 | H19: 415,900 | I19: 404,600 | J19: (11,300)
B20: Legal | D20: 28,200 | E20: 31,200 | F20: 3,000 | H20: 214,800 | I20: 193,900 | J20: (20,900)
B21: Audit | D21: 10,600 | E21: 11,800 | F21: 1,200 | H21: 87,200 | I21: 104,100 | J21: 16,900
B22: Telephone | D22: 15,500 | E22: 10,300 | F22: (5,200) | H22: 15,200 | I22: 21,400 | J22: 6,200
B23: Utilities | D23: 31,000 | E23: 39,300 | F23: 8,300 | H23: 68,000 | I23: 97,400 | J23: 29,400
B24: Contributions | D24: 36,500 | E24: 43,700 | F24: 7,200 | H24: 87,900 | I24: 92,100 | J24: 4,200
B25: Postage | D25: 27,300 | E25: 30,500 | F25: 3,200 | H25: 130,400 | I25: 161,900 | J25: 31,500
B26: Dues | D26: 21,300 | E26: 30,800 | F26: 9,500 | H26: 142,100 | I26: 180,700 | J26: 38,600
B27: Miscellaneous | D27: 14,800 | E27: 20,300 | F27: 5,500 | H27: 91,000 | I27: 97,800 | J27: 6,800
B29: VARIABLE
B30: Office salaries | D30: 23,000 | E30: 32,400 | F30: =IF(OR(E30<>0,D30),E30-D30,"") -> 9,400 | H30: 53,000 | I30: 29,500 | J30: =IF(OR(I30<>0,H30),I30-H30,"") -> (23,500)
B31: Employee benefits | D31: 29,800 | E31: 27,800 | F31: (2,000) | H31: 292,600 | I31: 170,200 | J31: (122,400)
B32: Payroll taxes | D32: 4,700 | E32: 3,300 | F32: (1,400) | H32: 14,400 | I32: 17,100 | J32: 2,700
B33: Travel and entertainment | D33: 36,100 | E33: 53,400 | F33: 17,300 | H33: 111,400 | I33: 108,900 | J33: (2,500)
B34: Telephone and telegraph | D34: 4,600 | E34: 6,300 | F34: 1,700 | H34: 47,500 | I34: 44,300 | J34: (3,200)
B35: Stationary and office supplies | D35: 6,600 | E35: 8,100 | F35: 1,500 | H35: 15,100 | I35: 13,400 | J35: (1,700)
B36: Bad debts | D36: 11,600 | E36: 10,700 | F36: (900) | H36: 57,700 | I36: 80,700 | J36: 23,000
B37: Postage | D37: 18,700 | E37: 20,400 | F37: 1,700 | H37: 131,400 | I37: 70,900 | J37: (60,500)
B38: Contributions | D38: 47,900 | E38: 47,500 | F38: (400) | H38: 316,800 | I38: 212,300 | J38: (104,500)
B39: Miscellaneous | D39: 42,100 | E39: 34,900 | F39: (7,200) | H39: 232,700 | I39: 331,900 | J39: 99,200
C40: TOTAL | D40: =IF(SUM(D10:D39),SUM(D10:D39),"") -> $647,500 | E40: =IF(SUM(E10:E39),SUM(E10:E39),"") -> $691,600 | F40: =IF(OR(SUM(E40)<>0,D40),E40-D40,"") -> $44,100 | H40: =IF(SUM(H10:H39),SUM(H10:H39),"") -> $3,822,160 | I40: =IF(SUM(I10:I39),SUM(I10:I39),"") -> $3,606,300 | J40: =IF(OR(SUM(I40)<>0,H40),I40-H40,"") -> ($215,860)
